bitfinex-derivatives/quotes_BTCF0:USTF0_20250212
["timestamp","ask_amount","ask_price","bid_price","bid_amount"]
[1739369536398,0.3608,94989.0,94977.0,0.30824034]
[1739369536594,0.2211,94999.0,94978.0,0.283]
[1739369536791,0.18240542,94986.0,94985.0,0.2105697]
[1739369538301,0.01764267,94986.0,94985.0,0.2105697]
[1739369538499,0.01764267,94986.0,94985.0,0.05241233]
[1739369538802,0.01964267,94986.0,94978.0,0.79726]
[1739369539104,0.01964267,94986.0,94978.0,0.5284]
[1739369539300,0.01964267,94986.0,94970.0,0.30839833]
[1739369539507,0.01964267,94986.0,94966.0,0.3623791]
[1739369539699,0.01964267,94986.0,94969.0,0.77868]
[1739369540000,0.5432,94985.0,94969.0,0.77868]
[1739369540202,0.3608,94978.0,94969.0,0.77868]
[1739369540397,0.3608,94970.0,94969.0,0.77868]
[1739369540796,0.3608,94970.0,94967.0,0.18863765]
[1739369540995,0.3588,94970.0,94967.0,0.18863765]
[1739369541196,0.3588,94970.0,94969.0,0.007]
[1739369541903,0.3588,94970.0,94969.0,0.01]
[1739369542104,0.3588,94970.0,94969.0,0.003]
[1739369542311,0.3608,94970.0,94967.0,0.18863765]
[1739369542604,0.3608,94970.0,94967.0,0.13607799]
[1739369543314,0.002,94970.0,94967.0,0.13607799]
[1739369543613,0.002,94970.0,94964.0,0.00015799]
[1739369543901,0.3628,94970.0,94964.0,0.00015799]
[1739369544105,0.002,94970.0,94964.0,0.00015799]
[1739369544309,0.2843,94977.0,94964.0,0.00015799]
[1739369544505,0.001,94970.0,94967.0,0.19135643]
[1739369544708,0.001,94970.0,94965.0,0.3608]
[1739369544895,0.2843,94977.0,94964.0,0.00015799]
[1739369544896,0.3608,94969.0,94964.0,0.00015799]
[1739369545399,0.001,94970.0,94957.0,0.5714305]
[1739369545703,0.00015799,94976.0,94959.0,0.19135643]
[1739369545902,0.3608,94970.0,94959.0,0.19135643]
[1739369546401,0.00015799,94976.0,94959.0,0.19135643]
[1739369547109,0.00015799,94976.0,94963.0,0.2106187]
[1739369547298,0.00015799,94976.0,94959.0,0.19135643]
[1739369547492,0.00015799,94976.0,94964.0,0.2106165]
[1739369547806,0.00015799,94976.0,94974.0,0.571394]
[1739369547997,0.00015799,94976.0,94975.0,0.5147]
[1739369548205,0.00015799,94976.0,94973.0,0.12088]
[1739369548409,0.00015799,94976.0,94973.0,0.06832034]
[1739369548795,0.3608,94975.0,94973.0,0.06832034]
[1739369549002,0.3608,94974.0,94973.0,0.06832034]
[1739369549198,0.6451,94974.0,94973.0,0.06832034]
[1739369549407,0.6451,94974.0,94964.0,0.0439423]
[1739369549613,0.3608,94965.0,94959.0,0.017]
[1739369550107,0.3608,94965.0,94959.0,0.005]
[1739369550706,0.3608,94965.0,94960.0,0.2106252]
[1739369551208,0.3598,94965.0,94955.0,0.00015799]
[1739369551511,0.3598,94965.0,94958.0,0.15806984]
[1739369551711,0.3598,94965.0,94959.0,0.003]
[1739369552303,0.3598,94965.0,94960.0,0.2106237]
[1739369552506,0.3598,94965.0,94955.0,0.00315799]
[1739369552711,0.28486001,94974.0,94965.0,0.210614]
[1739369552905,0.2843,94974.0,94964.0,0.55215643]
[1739369553119,0.2843,94974.0,94973.0,0.3608]
[1739369554414,0.2853,94974.0,94964.0,0.55215643]
[1739369554612,0.2853,94974.0,94964.0,0.19135643]
[1739369554810,0.3608,94967.0,94964.0,0.19135643]
[1739369555112,0.3608,94967.0,94957.0,0.19135643]
[1739369555714,0.3608,94967.0,94964.0,0.002]
[1739369556913,0.3608,94967.0,94964.0,0.006]
[1739369557212,0.3608,94967.0,94964.0,0.004]
[1739369557611,0.3608,94967.0,94957.0,0.19535643]
[1739369557812,0.3608,94967.0,94964.0,0.001]
[1739369558117,0.3608,94967.0,94964.0,0.002]
[1739369559008,0.00015799,94976.0,94965.0,0.3608]
[1739369559314,0.3608,94997.0,94975.0,0.3608]
[1739369559621,0.3608,94997.0,94990.0,0.2105588]
[1739369560016,0.3608,94997.0,94988.0,0.1206]
[1739369560716,0.3638,94997.0,94990.0,0.001]
[1739369561217,0.3608,94997.0,94990.0,0.001]
[1739369561422,0.3648,94997.0,94990.0,0.001]
[1739369562519,0.3698,94997.0,94988.0,0.001]
[1739369563221,0.3648,94997.0,94988.0,0.0436042]
[1739369563421,0.3698,94997.0,94990.0,0.001]
[1739369563623,0.3698,94997.0,94987.0,0.13979677]
[1739369564218,0.3658,94997.0,94987.0,0.13979677]
[1739369564418,0.2634,94996.0,94987.0,0.13979677]
[1739369564623,0.2634,94996.0,94988.0,0.001]
[1739369565220,0.5293,94996.0,94988.0,0.001]
[1739369565428,0.3608,94989.0,94983.0,0.00015791]
[1739369565724,0.3608,94989.0,94987.0,0.001]
[1739369566614,0.3608,94989.0,94983.0,0.00015791]
[1739369566926,0.3608,94989.0,94987.0,0.012]
[1739369567615,0.3638,94989.0,94987.0,0.001]
[1739369568023,0.3658,94989.0,94987.0,0.001]
[1739369568424,0.3638,94989.0,94987.0,0.001]
[1739369568626,0.3668,94989.0,94987.0,0.001]
[1739369568926,0.006,94989.0,94987.0,0.001]
[1739369569416,0.006,94989.0,94987.0,0.04540456]
[1739369569616,0.006,94989.0,94987.0,0.001]
[1739369569825,0.006,94989.0,94983.0,0.30924034]
[1739369570415,0.006,94989.0,94983.0,0.35344592]
[1739369571424,0.3608,94997.0,94983.0,0.35344592]
[1739369571625,0.18251884,95028.0,95011.0,0.2105106]
[1739369571812,0.1710529,95028.0,95023.0,0.3608]
[1739369572720,0.1710529,95028.0,95027.0,0.15791744]
[1739369573025,0.1710529,95030.0,95028.0,0.2104745]
[1739369574626,0.1720529,95030.0,95028.0,0.2104745]
[1739369575727,0.1730529,95030.0,95028.0,0.2104745]
[1739369576024,0.1730529,95030.0,95028.0,0.15791484]
[1739369577029,0.002,95030.0,95028.0,0.15791484]
[1739369577223,0.00015791,95035.0,95034.0,0.2104616]
[1739369577418,0.40391937,95060.0,95040.0,0.2104475]
[1739369577620,0.7337,95059.0,95040.0,0.2104475]
[1739369577814,0.73426001,95059.0,95040.0,0.2104475]
[1739369578522,0.73426001,95059.0,95039.0,0.19131951]
[1739369578728,0.00015782,95054.0,95039.0,0.19131951]
[1739369579031,0.3638,95049.0,95039.0,0.19131951]
[1739369580122,0.3638,95049.0,95039.0,0.19231951]
[1739369580424,0.3628,95049.0,95039.0,0.19231951]
[1739369580628,0.3628,95049.0,95039.0,0.001]
[1739369580829,0.3608,95040.0,95020.0,0.19131951]
[1739369581029,0.3628,95049.0,95033.0,0.3608]
[1739369581325,0.3628,95049.0,95039.0,0.19131951]
[1739369581831,0.3628,95049.0,95039.0,0.13875985]
[1739369582020,0.3608,95049.0,95039.0,0.13875985]
[1739369582325,0.3608,95049.0,95039.0,0.38263902]
[1739369582624,0.00015782,95054.0,95039.0,0.38263902]
[1739369582826,0.00015782,95054.0,95045.0,0.5712359]
[1739369583223,0.00015782,95054.0,95045.0,0.3608]
[1739369583619,0.005,95049.0,95045.0,0.3608]
[1739369584033,0.00015782,95054.0,95045.0,0.3618]
[1739369584231,0.00715782,95054.0,95045.0,0.3628]
[1739369584729,0.007,95049.0,95045.0,0.3628]
[1739369584920,0.007,95049.0,95045.0,0.31024034]
[1739369585224,0.007,95049.0,95037.0,0.00015782]
[1739369585429,0.3608,95039.0,95037.0,0.00015782]
[1739369585728,0.3598,95039.0,95037.0,0.00015782]
[1739369586424,0.06386541,95049.0,95027.0,0.778]
[1739369586425,0.3608,95038.0,95027.0,0.778]
[1739369586626,0.3608,95038.0,95037.0,0.001]
[1739369586831,0.7216,95038.0,95027.0,0.778]
[1739369587025,0.3608,95028.0,95027.0,0.778]
[1739369587227,0.3598,95028.0,95027.0,0.778]
[1739369587525,0.3608,95038.0,95027.0,0.778]
[1739369588032,0.3608,95038.0,95027.0,0.72544034]
[1739369588227,0.002,95028.0,95027.0,0.72544034]
[1739369588832,0.3628,95028.0,95027.0,0.72544034]
[1739369589033,0.3628,95028.0,95018.0,0.00015782]
[1739369589225,0.5336,95027.0,95018.0,0.00015782]
[1739369589532,0.3608,95020.0,95018.0,0.00015782]
[1739369590529,0.3608,95020.0,95019.0,0.001]
[1739369590726,0.3608,95020.0,95018.0,0.00015782]
[1739369591033,0.4315952,95019.0,94994.0,0.778]
[1739369591229,0.3608,94995.0,94994.0,0.778]
[1739369591419,0.2211,95006.0,94994.0,0.778]
[1739369591624,0.2211,95006.0,95000.0,0.3608]
[1739369592920,0.3608,95001.0,94994.0,0.00064]
[1739369593125,0.3548,94995.0,94993.0,0.00015782]
[1739369593530,0.5653484,94995.0,94970.0,0.19131951]
[1739369593732,0.5653484,94995.0,94967.0,0.2644]
[1739369593733,0.3468,94984.0,94967.0,0.2644]
[1739369594031,0.3608,94976.0,94963.0,0.20544034]
[1739369594226,0.2712,94975.0,94963.0,0.21]
[1739369594426,0.2211,94983.0,94968.0,0.3608]
[1739369594733,0.2211,94983.0,94973.0,0.19131951]
[1739369595327,0.2151,94983.0,94974.0,0.2438]
[1739369595928,0.3468,94984.0,94974.0,0.2438]
[1739369596132,0.2151,95026.0,94983.0,0.3608]
[1739369596133,0.3608,95014.0,94983.0,0.3608]
[1739369596333,0.3608,95014.0,95000.0,0.3608]
[1739369596837,0.04368016,95021.0,95000.0,0.3608]
[1739369597032,0.2577,95013.0,95000.0,0.30824034]
[1739369597335,0.0001579,95011.0,95000.0,0.30824034]
[1739369597844,0.007,95003.0,95000.0,0.30824034]
[1739369598328,0.0001579,95011.0,95000.0,0.30824034]
[1739369598529,0.014,95003.0,95000.0,0.30824034]
[1739369599236,0.0001579,95011.0,95000.0,0.30824034]
[1739369599436,0.007,95003.0,95000.0,0.35347245]
[1739369599832,0.007,95003.0,95000.0,0.35447245]
[1739369600038,0.0001579,95011.0,95000.0,0.30191279]
[1739369600228,0.001,95003.0,95000.0,0.4932323]
[1739369600429,0.001,95003.0,95000.0,0.30091279]
[1739369601138,0.002,95003.0,95000.0,0.30091279]
[1739369601836,0.008,95003.0,95000.0,0.30091279]
[1739369602044,0.008,95003.0,95001.0,0.2105347]
[1739369602425,0.0001579,95011.0,95002.0,0.11964]
[1739369602739,0.0001579,95011.0,95010.0,0.3608]
[1739369603241,0.0001579,95011.0,95010.0,0.30824034]
[1739369604738,0.0001579,95011.0,95007.0,0.05367109]
[1739369604941,0.0131579,95011.0,95010.0,0.001]
[1739369605937,0.0131579,95011.0,95001.0,0.11956]
[1739369606140,0.0161579,95011.0,95001.0,0.06700034]
[1739369606338,0.2476,95010.0,95001.0,0.06700034]
[1739369607843,0.2486,95010.0,95001.0,0.06700034]
[1739369608739,0.2486,95010.0,95001.0,0.06800034]
[1739369608740,0.2556,95010.0,95001.0,0.06800034]
[1739369609234,0.2556,95010.0,95001.0,0.01544068]
[1739369610834,0.009,95010.0,95009.0,0.210517]
[1739369611036,0.05237726,95028.0,95010.0,0.0526284]
[1739369611234,0.05237726,95028.0,95027.0,0.3608]
[1739369611646,0.19131951,95050.0,95027.0,0.3608]
[1739369611844,0.3608,95046.0,95027.0,0.3608]
[1739369612228,0.3609579,95046.0,95027.0,0.30839824]
[1739369612843,0.3609579,95046.0,95027.0,0.30939824]
[1739369613437,0.3629579,95046.0,95027.0,0.30939824]
[1739369613837,0.3608,95037.0,95027.0,0.30939824]
[1739369614040,0.2775,95036.0,95027.0,0.30939824]
[1739369614231,0.2775,95036.0,95027.0,0.30839824]
[1739369614437,0.2775,95036.0,95027.0,0.3609522]
[1739369615144,0.2825,95036.0,95027.0,0.3609522]
[1739369615342,0.2825,95036.0,95027.0,0.30839254]
[1739369615743,0.2825,95036.0,95027.0,0.0001579]
[1739369615942,0.3608,95028.0,95027.0,0.0001579]
[1739369616138,0.3608,95028.0,95006.0,0.2713]
[1739369616334,0.3608,95016.0,95006.0,0.2713]
[1739369616733,0.3608,95016.0,95007.0,0.05355882]
[1739369616939,0.3608,95016.0,95007.0,0.0015785]
[1739369617841,0.3608,95016.0,95006.0,0.32476968]
[1739369618349,0.3608,95016.0,95006.0,0.27221002]
[1739369618853,0.3608,95016.0,95006.0,0.27321002]
[1739369619356,0.0001579,95021.0,95006.0,0.27321002]
[1739369619647,0.001,95016.0,95006.0,0.27321002]
[1739369620242,0.5712956,95019.0,95006.0,0.27321002]
[1739369620746,0.5712956,95019.0,95006.0,0.05446968]
[1739369620948,0.3608,95011.0,95006.0,0.05446968]
[1739369621349,0.3608,95011.0,95006.0,0.00191002]
[1739369621548,0.3608,95011.0,95006.0,0.001]
[1739369621751,0.0001579,95021.0,95006.0,0.001]
[1739369621952,0.003,95019.0,95004.0,1.13956]
[1739369622153,0.003,95019.0,95004.0,1.13892]
[1739369622353,0.3608,95016.0,95004.0,1.13892]
[1739369622558,0.3608,95016.0,95004.0,1.19046877]
[1739369623650,0.006,95011.0,95006.0,0.001]
[1739369624446,0.006,95016.0,95004.0,1.13946911]
[1739369624645,0.006,95016.0,95004.0,1.13890911]
[1739369625058,0.004,95016.0,95004.0,1.13890911]
[1739369625243,0.006,95011.0,95006.0,0.001]
[1739369626655,0.002,95016.0,95004.0,1.13950911]
[1739369626846,0.003,95011.0,95004.0,1.13890911]
[1739369627356,0.003,95011.0,95004.0,1.08634945]
[1739369627556,0.007,95011.0,95004.0,1.08634945]
[1739369627750,0.007,95011.0,95004.0,0.72554945]
[1739369627962,0.3608,95010.0,95002.0,0.0001579]
[1739369628150,0.2105303,95003.0,94984.0,0.00157884]
[1739369628350,0.3608,94993.0,94984.0,0.26521715]
[1739369628547,0.53476001,95002.0,94984.0,0.21157884]
[1739369628762,0.5342,95002.0,94997.0,0.3608]
[1739369629660,0.5342,95002.0,94990.0,0.12780622]
[1739369629860,0.5342,95002.0,94990.0,0.0001579]
[1739369630261,0.5342,95002.0,94990.0,0.12780622]
[1739369630553,0.0001579,95009.0,94997.0,0.30824034]
[1739369630759,0.0001579,95009.0,94999.0,0.12764832]
[1739369631252,0.0001579,95009.0,95000.0,0.2105369]
[1739369631557,0.0001579,95009.0,94999.0,0.12764832]
[1739369632747,0.0021579,95009.0,94999.0,0.12764832]
[1739369633356,0.0021579,95009.0,94999.0,0.18076809]
[1739369633559,0.0021579,95009.0,94999.0,0.12820843]
[1739369633763,0.0071579,95009.0,94999.0,0.12820843]
[1739369634356,0.0071579,95009.0,95005.0,0.3608]
[1739369634754,0.0031579,95009.0,95005.0,0.3608]
[1739369634955,0.0031579,95009.0,95005.0,0.3808]
[1739369635459,0.3608,95021.0,95005.0,0.3808]
[1739369635670,0.2561,95037.0,95014.0,0.3608]
[1739369635958,0.2561,95037.0,95019.0,0.12764832]
[1739369636163,0.2561,95037.0,95022.0,0.3608]
[1739369636562,0.0001579,95035.0,95023.0,0.22124034]
[1739369637550,0.015,95029.0,95023.0,0.22124034]
[1739369637863,0.015,95029.0,95022.0,0.3618]
[1739369638162,0.021,95029.0,95022.0,0.4155304]
[1739369638358,0.006,95029.0,95023.0,0.001]
[1739369638764,0.02357884,95031.0,95023.0,0.002]
[1739369639352,0.007,95029.0,95023.0,0.001]
[1739369639658,0.007,95029.0,95022.0,0.36397074]
[1739369640162,0.02357884,95031.0,95023.0,0.001]
[1739369640565,0.00857884,95031.0,95023.0,0.001]
[1739369640761,0.015,95029.0,95023.0,0.3618]
[1739369641265,0.015,95029.0,95023.0,0.001]
[1739369641568,0.02357884,95031.0,95023.0,0.002]
[1739369641770,0.01657884,95031.0,95023.0,0.001]
[1739369642068,0.007,95029.0,95023.0,0.001]
[1739369642268,0.022,95029.0,95023.0,0.001]
[1739369642465,0.015,95029.0,95024.0,0.2104836]
[1739369642665,0.022,95029.0,95024.0,0.15792394]
[1739369642969,0.022,95029.0,95025.0,0.210481]
[1739369643179,0.022,95029.0,95027.0,0.2104759]
[1739369643766,0.022,95029.0,95028.0,0.2766]
[1739369643969,0.007,95029.0,95028.0,0.2766]
[1739369644164,0.007,95029.0,95023.0,0.3628]
[1739369644364,0.007,95029.0,95023.0,0.002]
[1739369644866,0.013,95029.0,95023.0,0.001]
[1739369645074,0.013,95029.0,95024.0,0.001]
[1739369645467,0.007,95029.0,95024.0,0.001]
[1739369645770,0.007,95029.0,95013.0,0.06723824]
[1739369645771,0.004,95029.0,95013.0,0.06723824]
[1739369646159,0.003,95029.0,95013.0,0.06723824]
[1739369646363,0.006,95029.0,95013.0,0.06723824]
[1739369646767,0.003,95029.0,95013.0,0.06723824]
[1739369647072,0.3608,95031.0,95013.0,0.06823824]
[1739369647271,0.007,95029.0,95024.0,0.001]
[1739369647777,0.57182871,95031.0,95013.0,0.05380523]
[1739369647970,0.3608,95021.0,95013.0,0.05380523]
[1739369648169,0.5259,95020.0,95013.0,0.05380523]
[1739369648364,0.7897,95020.0,95013.0,0.05380523]
[1739369648568,0.7897,95020.0,95013.0,0.00124557]
[1739369648768,0.7887,95020.0,95011.0,0.0001579]
[1739369648973,0.7887,95020.0,95011.0,0.05183167]
[1739369649264,0.7887,95020.0,95011.0,0.0001579]
[1739369649779,0.7897,95020.0,95011.0,0.05305786]
[1739369649968,0.7897,95020.0,95011.0,0.0001579]
[1739369650680,0.7897,95020.0,95013.0,0.002]
[1739369651075,0.2105131,95011.0,94984.0,0.00157878]
[1739369651274,0.3608,94993.0,94987.0,1.01979797]
[1739369651474,0.5348,94992.0,94987.0,1.01979797]
[1739369651772,0.5348,94992.0,94987.0,0.96723831]
[1739369652072,0.5348,94992.0,94986.0,0.05161588]
[1739369652271,0.5348,94992.0,94987.0,0.003]
[1739369654278,0.2663,94991.0,94987.0,0.003]
[1739369654681,0.2663,94991.0,94984.0,0.00568216]
[1739369654883,0.3608,94985.0,94976.0,1e-08]
[1739369655066,0.3608,94977.0,94955.0,0.3608]
[1739369655273,0.3608,94966.0,94955.0,0.5508]
[1739369655578,0.34189944,94965.0,94955.0,0.60446805]
[1739369656280,0.33789944,94965.0,94955.0,0.60446805]
[1739369656470,0.32989944,94965.0,94955.0,0.60446805]
[1739369656983,0.33089944,94965.0,94955.0,0.61046805]
[1739369657180,0.33189944,94965.0,94955.0,0.62146805]
[1739369657779,0.33189944,94965.0,94955.0,0.5689095]
[1739369660379,0.33289944,94965.0,94955.0,0.5549095]
[1739369660783,0.33289944,94965.0,94955.0,0.50235095]
[1739369661083,0.33389944,94965.0,94955.0,0.49935095]
[1739369662976,0.2609,94965.0,94955.0,0.49935095]
[1739369663183,0.2649,94965.0,94955.0,0.49935095]
[1739369663881,0.2639,94965.0,94955.0,0.4467924]
[1739369664985,0.005,94965.0,94955.0,0.4467924]
[1739369666290,0.005,94965.0,94961.0,0.2106224]
[1739369666586,0.005,94965.0,94961.0,0.2306224]
[1739369666985,0.005,94965.0,94961.0,0.17806385]
[1739369667177,0.005,94965.0,94961.0,0.02]
[1739369667588,0.002,94965.0,94961.0,0.02]
[1739369668678,0.00157948,94994.0,94964.0,0.3608]
[1739369668878,0.2504,94993.0,94975.0,0.3608]
[1739369669080,0.2504,94993.0,94980.0,0.12764832]
[1739369669276,0.2504,94993.0,94983.0,0.2105742]
[1739369669483,0.2504,94993.0,94985.0,0.210568]
[1739369669683,0.2504,94993.0,94985.0,0.220568]
[1739369669885,0.2504,94993.0,94985.0,0.16800945]
[1739369670484,0.2504,94993.0,94985.0,0.01]
[1739369670787,0.0001579,94998.0,94997.0,0.2105436]
[1739369672480,0.0071579,94998.0,94993.0,0.4738509]
[1739369672685,0.0071579,94998.0,94993.0,0.5438509]
[1739369672989,0.0071579,94998.0,94993.0,0.49129235]
[1739369673488,0.0221579,94998.0,94997.0,0.001]
[1739369674092,0.0201579,94998.0,94994.0,0.2105486]
[1739369674290,0.0191579,94998.0,94994.0,0.2105486]
[1739369675090,0.0201579,94998.0,94994.0,0.2105486]
[1739369675282,0.0201579,94998.0,94993.0,0.21174145]
[1739369675486,0.0131579,94998.0,94994.0,0.001]
[1739369675786,0.0131579,94998.0,94988.0,0.12764832]
[1739369675787,0.7427579,94998.0,94983.0,0.0006]
[1739369675985,0.3608,94985.0,94962.0,0.2771]
[1739369676189,0.3608,94985.0,94960.0,0.12764832]
[1739369676190,0.3608,94973.0,94960.0,0.12764832]
[1739369676490,0.3598,94973.0,94960.0,0.12764832]
[1739369677191,0.3598,94973.0,94960.0,0.13664832]
[1739369677379,0.3608,94961.0,94960.0,0.13664832]
[1739369677582,0.3608,94961.0,94960.0,0.019]
[1739369677983,0.3578,94961.0,94960.0,0.019]
[1739369678289,0.3578,94961.0,94960.0,0.009]
[1739369678594,0.3578,94961.0,94960.0,0.012]
[1739369678794,0.3588,94961.0,94960.0,0.009]
[1739369678991,0.3588,94961.0,94953.0,0.78844671]
[1739369679191,0.3588,94961.0,94953.0,0.78788671]
[1739369680189,0.3598,94961.0,94953.0,0.79288671]
[1739369680714,0.2106285,94959.0,94953.0,0.005]
[1739369680994,0.2106285,94959.0,94941.0,0.00157972]
[1739369681193,0.3608,94952.0,94941.0,0.02157972]
[1739369681380,0.3608,94952.0,94941.0,0.00157972]
[1739369682097,0.3608,94952.0,94930.0,0.2106917]
[1739369682292,0.3608,94952.0,94940.0,0.12764832]
[1739369682593,0.3638,94952.0,94940.0,0.12764832]
[1739369682795,0.3658,94952.0,94940.0,0.12764832]
[1739369683187,0.3608,94941.0,94932.0,0.05279122]
[1739369683388,0.2425,94940.0,94930.0,0.12764832]
[1739369683791,0.3608,94931.0,94921.0,0.52478001]
[1739369683988,0.3608,94931.0,94921.0,0.27908001]
[1739369684497,0.3608,94922.0,94921.0,0.00158001]
[1739369685099,0.3608,94922.0,94921.0,0.0011333]
[1739369685299,0.3608,94922.0,94916.0,0.77892]
[1739369685490,0.3608,94922.0,94916.0,0.77832]
[1739369685888,0.3618,94922.0,94916.0,0.77832]
[1739369686191,0.001,94922.0,94916.0,0.83010006]
[1739369686394,0.001,94922.0,94918.0,0.3608]
[1739369686594,0.3608,94931.0,94918.0,0.3708]
[1739369686801,0.3608,94931.0,94921.0,0.12764832]
[1739369688212,0.001,94922.0,94921.0,0.07508977]
[1739369688502,0.001,94922.0,94918.0,0.3608]
[1739369688999,0.3628,94931.0,94918.0,0.3608]
[1739369689200,0.3628,94931.0,94920.0,0.12764832]
[1739369689902,0.001,94922.0,94920.0,0.48844832]
[1739369690095,0.001,94922.0,94920.0,0.3608]
[1739369690690,0.001,94922.0,94920.0,0.5715138]
[1739369690895,0.001,94922.0,94921.0,0.2107121]
[1739369691202,0.001,94922.0,94921.0,0.17815355]
[1739369691402,0.00015799,94935.0,94921.0,0.02]
[1739369691603,0.00015799,94935.0,94934.0,0.3608]
[1739369692391,0.00015799,94935.0,94928.0,0.11768]
[1739369692595,0.00315799,94935.0,94928.0,0.11768]
[1739369693204,0.01215799,94935.0,94928.0,0.11768]
[1739369693805,0.01215799,94935.0,94931.0,0.3608]
[1739369694310,0.01215799,94935.0,94931.0,0.30824145]
[1739369694607,0.01815799,94935.0,94934.0,0.2106833]
[1739369694813,0.01215799,94935.0,94934.0,0.2106833]
[1739369695013,0.00115799,94935.0,94934.0,0.2106833]
[1739369695313,0.00115799,94935.0,94931.0,0.30824145]
[1739369695516,0.00115799,94935.0,94931.0,0.32824145]
[1739369695719,0.00115799,94935.0,94931.0,0.30824145]
[1739369696503,0.00115799,94935.0,94931.0,0.51893025]
[1739369697208,0.00115799,94935.0,94931.0,0.4663717]
[1739369697405,0.00115799,94935.0,94931.0,0.2556829]
[1739369697608,0.00115799,94935.0,94929.0,0.3608]
[1739369698708,0.00115799,94935.0,94931.0,0.003]
[1739369699315,0.00015799,94935.0,94928.0,0.05337804]
[1739369699613,0.00015799,94935.0,94929.0,0.003]
[1739369700208,0.00015799,94935.0,94920.0,0.05340437]
[1739369700412,0.3608,94925.0,94920.0,0.12764832]
[1739369700808,0.3608,94925.0,94916.0,0.77888]
[1739369701014,0.3608,94925.0,94916.0,0.77832]
[1739369701216,0.3608,94925.0,94916.0,0.82971756]
[1739369702013,0.3608,94917.0,94897.0,0.00158052]
[1739369702310,0.3608,94902.0,94897.0,0.00158052]
[1739369703109,0.3598,94902.0,94897.0,0.00158052]
[1739369703309,0.3608,94901.0,94900.0,0.04744145]
[1739369703514,0.3608,94901.0,94892.0,0.05290925]
[1739369703715,0.3558,94893.0,94883.0,0.77868]
[1739369704014,0.5216,94892.0,94883.0,0.83085184]
[1739369704211,0.7647,94892.0,94883.0,0.83085184]
[1739369704614,0.7597,94892.0,94883.0,0.83085184]
[1739369705015,0.3608,94886.0,94883.0,0.83085184]
[1739369705414,0.3608,94886.0,94883.0,0.77868]
[1739369706420,0.3608,94886.0,94870.0,0.12764832]
[1739369706717,0.3608,94877.0,94870.0,0.18043772]
[1739369708708,0.3618,94877.0,94870.0,0.18043772]
[1739369709321,0.3628,94877.0,94870.0,0.12787917]
[1739369710109,0.3618,94877.0,94870.0,0.0527894]
[1739369710317,0.3628,94877.0,94865.0,0.00013213]
[1739369711015,0.3738,94877.0,94865.0,0.00013213]
[1739369711216,0.3738,94877.0,94867.0,0.12764832]
[1739369711616,0.3738,94877.0,94865.0,0.05317452]
[1739369711823,0.3748,94877.0,94865.0,0.05317452]
[1739369712026,0.3748,94877.0,94865.0,0.05304239]
[1739369712027,0.3608,94869.0,94865.0,0.05304239]
[1739369712324,0.3608,94869.0,94860.0,0.05300549]
[1739369712325,0.2488,94868.0,94860.0,0.05300549]
[1739369712526,0.3608,94861.0,94843.0,0.3608]
[1739369712822,0.3608,94861.0,94853.0,0.77884]
[1739369713625,0.3608,94861.0,94853.0,0.8326206]
[1739369714226,0.3658,94861.0,94853.0,0.0537806]
[1739369714429,0.3608,94859.0,94840.0,0.5127]
[1739369714732,0.3608,94859.0,94840.0,0.64034832]
[1739369714929,0.3608,94859.0,94814.0,0.11724]
[1739369714930,0.3608,94859.0,94822.0,0.3608]
[1739369715125,0.3608,94843.0,94830.0,0.12764832]
[1739369715321,0.3608,94843.0,94822.0,0.3608]
[1739369715520,0.2689,94842.0,94832.0,0.30824145]
[1739369715923,0.3608,94840.0,94832.0,0.0536277]
[1739369716129,0.3608,94840.0,94826.0,0.3608]
[1739369717134,0.3608,94840.0,94826.0,0.41242958]
[1739369717528,0.48844832,94840.0,94826.0,0.41242958]
[1739369717734,0.3608,94829.0,94826.0,0.05162958]
[1739369717930,0.16940454,94829.0,94814.0,0.3608]
[1739369718125,0.2464,94828.0,94814.0,0.50404284]
[1739369718627,0.2464,94828.0,94814.0,0.45148429]
[1739369719223,0.2464,94828.0,94818.0,0.12764832]
[1739369720129,0.3618,94840.0,94823.0,0.3608]
[1739369720431,0.00015817,94847.0,94835.0,0.3608]
[1739369720634,0.2506,94860.0,94851.0,0.12764832]
[1739369721027,0.3608,94871.0,94851.0,0.16764832]
[1739369721332,0.2506,94878.0,94853.0,0.3608]
[1739369721633,0.3608,94871.0,94860.0,0.07508977]
[1739369721936,0.3608,94871.0,94853.0,0.00015817]
[1739369722128,0.3608,94871.0,94853.0,0.07162103]
[1739369722331,0.3608,94858.0,94853.0,0.05162103]
[1739369722524,0.022,94860.0,94853.0,0.44242103]
[1739369722732,0.022,94860.0,94854.0,0.47788]
[1739369722935,0.022,94860.0,94854.0,0.53788]
[1739369723340,0.014,94871.0,94854.0,0.53788]
[1739369723535,0.3608,94859.0,94853.0,0.05162103]
[1739369724641,0.3608,94859.0,94849.0,0.19119757]
[1739369725239,0.3608,94859.0,94849.0,0.24504951]
[1739369725836,0.3618,94859.0,94849.0,0.24504951]
[1739369726634,0.003,94859.0,94849.0,0.33504951]
[1739369726834,0.003,94859.0,94855.0,0.2108573]
[1739369727040,0.003,94859.0,94856.0,0.2543]
[1739369727439,0.003,94859.0,94857.0,0.2108543]
[1739369727642,0.00015817,94872.0,94857.0,0.11]
[1739369727940,0.00015817,94872.0,94865.0,0.3608]
[1739369728138,0.00015817,94872.0,94866.0,0.11696]
[1739369729342,0.00315817,94872.0,94866.0,0.11696]
[1739369729734,0.01715817,94872.0,94866.0,0.11696]
[1739369729940,0.01715817,94872.0,94866.0,0.17080477]
[1739369730750,0.01715817,94872.0,94866.0,0.11824622]
[1739369730943,0.01715817,94872.0,94866.0,0.05384477]
[1739369731140,0.01715817,94872.0,94850.0,0.77988]
[1739369731441,0.01715817,94872.0,94850.0,0.77932]
[1739369731442,0.3608,94858.0,94850.0,0.77932]
[1739369731640,0.4967,94857.0,94850.0,0.77932]
[1739369731850,0.4967,94857.0,94850.0,0.83323331]
[1739369732647,0.4967,94857.0,94850.0,0.83423331]